bitfinex/quotes_ETHUSD_20220113
["timestamp","ask_amount","ask_price","bid_price","bid_amount"]
[1642115477274,1.41521838,3256.0,3255.7,0.00397896]
[1642115477471,1.41521838,3256.0,3255.5,0.00511581]
[1642115477771,1.11521838,3256.0,3255.5,0.00511581]
[1642115477972,0.3,3256.0,3255.6,0.04337454]
[1642115478172,5.60926654,3256.3,3255.7,1.00338382]
[1642115478373,5.60926654,3256.3,3255.7,1.00736278]
[1642115478675,5.60926654,3256.3,3255.8,0.00341054]
[1642115478872,5.60926654,3256.3,3255.8,1.00679436]
[1642115479073,5.60926654,3256.3,3255.8,1.00338382]
[1642115479378,5.60926654,3256.3,3255.9,0.00284212]
[1642115479873,5.30926654,3256.3,3255.9,0.00284212]
[1642115480475,1.25758668,3256.2,3255.9,0.00284212]
[1642115483229,6.912539,3256.0,3255.9,0.00284212]
[1642115483424,7.335339,3256.0,3255.9,0.00284212]
[1642115483625,9.075339,3256.0,3255.5,0.00511581]
[1642115483829,3.463312,3255.6,3255.5,0.00511581]
[1642115484029,4.761312,3255.6,3255.5,0.00511581]
[1642115484225,6.59652016,3255.6,3255.5,0.00511581]
[1642115486174,6.59652016,3255.6,3255.5,2.64402307]
[1642115489526,7.47372016,3255.6,3255.5,2.64402307]
[1642115490827,7.59652016,3255.6,3255.5,2.64402307]
[1642115491026,8.03652016,3255.6,3255.5,2.64402307]
[1642115492673,11.13652016,3255.6,3255.5,2.64402307]
[1642115496821,11.01372016,3255.6,3255.5,2.64402307]
[1642115497122,4.74348,3255.6,3255.5,2.64402307]
[1642115497326,3.1,3255.6,3255.5,2.64402307]
[1642115497621,3.4,3255.6,3255.5,2.64402307]
[1642115498224,3.1,3255.6,3255.5,3.94185978]
[1642115498521,3.1,3255.6,3255.5,7.65618852]
[1642115500776,3.4,3255.6,3255.5,4.06465978]
[1642115500976,3.4,3255.6,3255.5,2.76682307]
[1642115501176,3.4,3255.6,3255.5,2.64402307]
[1642115501375,3.1,3255.6,3255.5,2.64402307]
[1642115502174,3.1,3255.6,3255.5,4.12933407]
[1642115503530,3.1,3255.6,3255.5,7.70925221]
[1642115506128,3.1,3255.6,3255.5,7.83205221]
[1642115507978,3.1,3255.6,3255.5,9.40222426]
[1642115508580,3.1,3255.6,3255.5,9.46540375]
[1642115508781,3.1,3255.6,3255.5,9.45429826]
[1642115509082,3.1,3255.6,3255.5,7.76132621]
[1642115510382,3.1,3255.6,3255.5,7.88412621]
[1642115510784,3.1,3255.6,3255.5,9.45429826]
[1642115511429,3.1,3255.6,3255.5,9.33149826]
[1642115511828,3.1,3255.6,3255.5,7.76132621]
[1642115512631,3.1,3255.6,3255.5,4.12933407]
[1642115512831,3.1,3255.6,3255.5,9.2798582]
[1642115513232,3.1,3255.6,3255.5,5.69950612]
[1642115513633,3.1,3255.6,3255.5,7.77983619]
[1642115513831,3.1,3255.6,3255.5,4.12421826]
[1642115514031,3.1,3255.6,3255.5,7.68230902]
[1642115514232,3.1,3255.6,3255.5,4.12421826]
[1642115514433,3.1,3255.6,3255.5,7.69302849]
[1642115514635,3.1,3255.6,3255.5,7.68300562]
[1642115514877,3.1,3255.6,3255.5,4.12421826]
[1642115515078,3.1,3255.6,3255.5,7.76246494]
[1642115516080,2.49760735,3256.7,3255.8,7.1]
[1642115516280,2.49760735,3256.7,3256.4,1.00338382]
[1642115516580,0.00113685,3256.6,3256.5,7.15]
[1642115516779,0.00113685,3256.6,3256.5,13.30442546]
[1642115517181,0.00113685,3256.6,3256.5,14.85316555]
[1642115517979,0.00113685,3256.6,3256.5,15.62076555]
[1642115519429,0.00113685,3256.6,3256.5,18.25967281]
[1642115520029,0.00113685,3256.6,3256.5,22.40857281]
[1642115520331,0.00113685,3256.6,3256.5,23.40857281]
[1642115520528,0.00113685,3256.6,3256.5,22.40857281]
[1642115520830,0.00113685,3256.6,3256.5,27.77768073]
[1642115521829,0.00113685,3256.6,3256.5,26.21344726]
[1642115522677,3.10113685,3256.6,3256.5,26.21344726]
[1642115522881,3.10113685,3256.6,3256.5,6.56658171]
[1642115523083,3.41271685,3256.6,3256.5,6.44378171]
[1642115523280,3.53551685,3256.6,3256.5,6.44378171]
[1642115523980,3.52393685,3256.6,3256.5,6.44378171]
[1642115524281,3.52393685,3256.6,3256.5,2.63890726]
[1642115525282,3.22393685,3256.6,3256.5,2.63890726]
[1642115525483,3.10113685,3256.6,3256.5,2.63890726]
[1642115525684,3.10113685,3256.6,3256.5,8.78890726]
[1642115525885,3.10113685,3256.6,3256.5,8.91170726]
[1642115526829,0.1228,3257.3,3256.5,10.73880229]
[1642115527031,0.1228,3257.3,3257.2,7.16262853]
[1642115527229,0.1228,3257.3,3257.2,8.91011235]
[1642115527929,0.1228,3257.3,3257.2,10.33704116]
[1642115528328,0.1228,3257.3,3257.2,11.10445116]
[1642115529128,0.1228,3257.3,3257.2,13.74335842]
[1642115529331,0.1228,3257.3,3257.2,12.97594842]
[1642115529529,0.1228,3257.9,3257.2,5.06921989]
[1642115529774,0.010911,3257.6,3257.2,4.06583607]
[1642115530177,0.010911,3257.6,3257.5,4.10338382]
[1642115530577,0.00568423,3257.6,3257.5,4.10338382]
[1642115530775,0.00568423,3257.6,3257.5,2.34153446]
[1642115531578,0.00568423,3257.6,3257.5,7.99153446]
[1642115532681,0.00568423,3257.6,3257.5,10.63044172]
[1642115532879,3.10568423,3257.6,3257.5,4.98044172]
[1642115536333,0.010911,3258.0,3257.6,18.89431577]
[1642115536537,2.38571835,3258.2,3257.9,1.00338382]
[1642115536538,2.37480735,3258.2,3257.9,1.00338382]
[1642115536735,2.37480735,3258.2,3258.0,0.18117434]
[1642115537133,2.37480735,3258.2,3258.0,0.94841434]
[1642115537376,2.37480735,3258.2,3258.1,8.3985459]
[1642115537776,0.00341054,3258.2,3258.1,8.3985459]
[1642115539176,0.00341054,3258.2,3258.1,11.16015316]
[1642115539579,0.00341054,3258.2,3258.1,12.16015316]
[1642115540878,0.00341054,3258.2,3258.1,12.60015316]
[1642115541829,0.010911,3258.9,3258.2,7.15]
[1642115542030,0.9798196,3259.0,3258.6,0.7671]
[1642115542330,0.00397897,3258.9,3258.8,1.00338382]
[1642115542528,0.00397897,3258.9,3258.8,6.60338382]
[1642115542927,3.10397897,3258.9,3258.8,6.60338382]
[1642115543132,3.10397897,3258.9,3258.8,7.72171566]
[1642115543930,0.00397897,3258.9,3258.8,8.82499202]
[1642115544129,0.00397897,3258.9,3258.8,12.46389928]
[1642115544331,0.00397897,3258.9,3258.8,11.46389928]
[1642115544630,0.00397897,3258.9,3258.8,5.86389928]
[1642115544906,0.00397897,3258.9,3258.8,3.64229108]
[1642115544907,0.01702697,3258.9,3258.8,3.64229108]
[1642115545105,0.13972697,3258.9,3258.8,3.64229108]
[1642115545809,0.13972697,3258.9,3258.8,2.63890726]
[1642115545810,1.66597772,3258.9,3258.8,2.63890726]
[1642115546008,1.66597772,3258.9,3258.4,3.80487445]
[1642115546009,1.44709221,3258.5,3258.4,3.80487445]
[1642115546207,6.2823761,3258.9,3258.1,1.20539443]
[1642115546208,0.1227,3258.8,3258.1,1.20539443]
[1642115546406,0.014251,3258.3,3258.1,1.20539443]
[1642115546606,0.014251,3258.3,3258.2,1.00338382]
[1642115547607,0.1227,3258.4,3258.2,1.00338382]
[1642115547805,2.37319218,3258.6,3258.2,1.00338382]
[1642115548207,0.00170527,3258.5,3258.2,4.19091172]
[1642115548409,0.00170527,3258.5,3258.3,0.7672774]
[1642115548632,2.37319218,3258.6,3258.3,0.7672774]
[1642115548633,0.00113685,3258.4,3258.3,0.7672774]
[1642115549232,0.00113685,3258.4,3258.3,5.81049968]
[1642115551136,0.00113685,3258.4,3258.3,5.93319968]
[1642115551933,0.00113685,3258.4,3258.3,1.56592228]
[1642115552382,0.00113685,3258.4,3258.3,4.26592228]
[1642115553583,0.00113685,3258.4,3258.3,5.26592228]
[1642115553782,0.00113685,3258.4,3258.3,5.56592228]
[1642115554382,0.00113685,3258.4,3258.3,10.01592228]
[1642115554585,0.00113685,3258.4,3258.3,11.03422228]
[1642115556043,0.9798196,3259.0,3258.3,11.03422228]
[1642115556044,0.9798196,3259.0,3258.4,7.15]
[1642115556239,0.9798196,3259.0,3258.5,2.0967173]
[1642115556433,0.00284212,3258.9,3258.6,0.767]
[1642115556635,0.00284212,3258.9,3258.7,0.5627]
[1642115556834,0.00227369,3258.8,3258.7,0.5627]
[1642115557035,0.00227369,3258.8,3258.7,1.56608382]
[1642115557234,0.00227369,3258.8,3258.7,8.71608382]
[1642115557434,0.00227369,3258.8,3258.7,9.71608382]
[1642115558036,0.00227369,3258.8,3258.7,10.48307382]
[1642115558838,0.00227369,3258.8,3258.7,3.33307382]
[1642115559038,0.00227369,3258.8,3258.7,2.56608382]
[1642115560278,0.00227369,3258.8,3258.7,6.14338382]
[1642115560479,0.00227369,3258.8,3258.7,7.14338382]
[1642115560877,0.00227369,3258.8,3258.7,2.44338382]
[1642115561078,0.00227369,3258.8,3258.7,1.00338382]
[1642115562379,0.00227369,3258.8,3258.7,5.25338382]
[1642115565434,0.00227369,3258.8,3258.7,1.00338382]
[1642115566434,0.00227369,3258.8,3258.7,3.63975646]
[1642115568081,0.00227369,3258.8,3258.7,4.63975646]
[1642115568482,0.9798196,3259.0,3258.8,21.99772631]
[1642115568681,0.9798196,3259.0,3258.8,23.13031118]
[1642115568881,1.2798196,3259.0,3258.8,23.13031118]
[1642115571833,0.9798196,3259.0,3258.8,23.13031118]
[1642115572436,0.134996,3258.9,3258.8,21.99772631]
[1642115573234,2.734996,3258.9,3258.8,21.99772631]
[1642115573435,3.82390968,3258.9,3258.8,21.99772631]
[1642115573735,3.82390968,3258.9,3258.8,23.00111013]
[1642115573736,0.1227,3258.9,3258.8,23.00111013]
[1642115573935,1.4025196,3259.0,3258.8,23.00111013]
[1642115574539,1.1025196,3259.0,3258.8,25.63748987]
[1642115574984,0.9918866,3259.0,3258.8,24.63410605]
[1642115575282,0.1227,3258.9,3258.8,24.63410605]
[1642115575486,0.1227,3258.9,3258.8,25.63748987]
[1642115575682,0.1227,3258.9,3258.8,23.00111013]
[1642115576483,0.9798196,3259.0,3258.8,23.12381013]
[1642115576686,0.9798196,3259.0,3258.8,25.05081013]
[1642115576883,0.9798196,3259.0,3258.9,8.1]
[1642115577089,0.9798196,3259.0,3258.9,8.2227]
[1642115577284,0.98095645,3259.0,3258.9,8.2227]
[1642115578641,0.98095645,3259.0,3258.9,3.66402719]
[1642115579036,0.98095645,3259.0,3258.9,3.78672719]
[1642115579240,0.98095645,3259.0,3258.9,3.66402719]
[1642115579643,0.99321545,3259.0,3258.9,3.66402719]
[1642115579836,0.99321545,3259.0,3258.8,23.00111013]
[1642115580038,0.98095645,3259.0,3258.8,23.00111013]
[1642115580236,0.98095645,3259.0,3258.8,23.76825403]
[1642115581338,0.98095645,3259.0,3258.8,23.00111013]
[1642115585781,1.28095645,3259.0,3258.8,23.00111013]
[1642115586248,1.28095645,3259.0,3258.8,21.99772631]
[1642115588053,1.29297045,3259.0,3258.8,21.99772631]
[1642115588249,0.1227,3258.9,3258.8,21.99772631]
[1642115588651,4.3288594,3258.9,3258.8,21.99772631]
[1642115588852,4.6288594,3258.9,3258.8,21.99772631]
[1642115589051,4.5227,3258.9,3258.8,21.99772631]
[1642115589251,7.5727,3258.9,3258.8,18.80732631]
[1642115589450,7.5727,3258.9,3258.8,14.60722631]
[1642115589652,11.73870081,3258.9,3258.8,7.76382631]
[1642115590080,7.5727,3258.9,3258.8,7.76382631]
[1642115590584,7.3,3258.8,3257.6,18.89431577]
[1642115590782,0.017458,3257.7,3257.6,18.89431577]
[1642115590981,0.939858,3257.7,3257.6,18.89431577]
[1642115591181,1.062558,3257.7,3257.6,18.89431577]
[1642115591388,1.362558,3257.7,3257.6,18.89431577]
[1642115591581,2.71416669,3257.7,3257.6,18.89431577]
[1642115591780,1.062558,3257.7,3257.6,18.89431577]
[1642115591980,1.362558,3257.7,3257.6,18.89431577]
[1642115592180,1.239858,3257.7,3257.6,18.89431577]
[1642115592382,0.939858,3257.7,3257.6,18.89431577]
[1642115592581,1.239858,3257.7,3257.6,18.89431577]
[1642115592984,0.939858,3257.7,3257.6,21.33772684]
[1642115593181,0.017458,3257.7,3257.6,21.33772684]
[1642115593636,0.017458,3257.7,3257.6,24.94986364]
[1642115594039,0.017458,3257.7,3257.6,23.94647982]
[1642115594438,2.717458,3257.7,3257.6,22.50645257]
[1642115594836,3.017458,3257.7,3257.6,22.50645257]
[1642115596038,2.717458,3257.7,3257.6,22.50645257]
[1642115596440,2.717458,3257.7,3257.4,2.3277773]
[1642115596841,2.717458,3257.7,3257.5,0.0073895]
[1642115597041,0.01693,3257.6,3257.5,0.0073895]
[1642115597886,0.01693,3257.6,3257.5,3.1073895]
[1642115598290,0.01693,3257.6,3257.5,0.0073895]
[1642115599889,0.01693,3257.6,3257.5,1.01077332]
[1642115600092,2.7,3257.7,3257.5,1.01077332]
[1642115600292,2.7,3257.7,3257.6,7.4727]
[1642115600490,2.7,3257.7,3257.6,7.47952108]
[1642115607281,2.7,3257.7,3257.6,7.35682108]
[1642115607481,2.7,3257.7,3257.6,9.99374137]
[1642115612784,2.719751,3257.7,3257.6,2.64374137]
[1642115613585,2.842451,3257.7,3257.6,0.00682108]
[1642115613888,2.842451,3257.7,3257.4,0.00795793]
[1642115614084,0.014867,3257.5,3257.4,0.00795793]
[1642115614287,1.56026902,3257.5,3257.2,0.00909477]
[1642115614484,0.013472,3257.4,3257.2,0.00909477]
[1642115616143,0.013472,3257.4,3257.1,0.0096632]
[1642115616746,0.136948,3257.3,3257.1,0.0096632]
[1642115617148,0.136948,3257.3,3257.0,0.01023162]
[1642115617545,0.023859,3257.1,3257.0,0.01023162]
[1642115617749,0.146659,3257.1,3257.0,0.01023162]
[1642115618447,0.146659,3257.1,3257.0,1.01361544]
[1642115618846,0.136948,3257.3,3257.0,1.01361544]
[1642115619050,0.014148,3257.3,3257.0,1.01361544]
[1642115619248,0.014148,3257.3,3256.9,4.1167]
[1642115619249,0.014148,3257.3,3257.1,0.0096632]
[1642115619648,0.014148,3257.3,3257.0,0.01023162]
[1642115619883,0.1228,3257.2,3257.0,0.01023162]
[1642115620086,0.012694,3257.1,3256.8,0.01136847]
[1642115620286,0.1228,3257.0,3256.8,0.01136847]
[1642115621186,2.79436506,3257.5,3256.9,4.4334037]
[1642115621385,0.010911,3257.2,3257.0,0.03796943]
[1642115621592,0.133711,3257.4,3257.0,0.04820105]
[1642115621784,0.010911,3257.4,3257.1,0.0096632]
[1642115621984,1.12616304,3257.5,3257.1,0.0096632]
[1642115622185,0.010911,3257.5,3257.0,0.01023162]
[1642115622387,0.014003,3257.4,3257.0,0.01023162]
[1642115622684,0.135321,3257.4,3257.0,0.01023162]
[1642115622887,0.014694,3257.2,3257.0,0.01023162]
[1642115623084,0.01325,3257.1,3257.0,0.01023162]
[1642115623285,0.01325,3257.1,3257.0,1.01361544]
[1642115623554,0.135321,3257.4,3257.0,1.01361544]
[1642115623742,0.012521,3257.4,3257.0,1.01361544]
[1642115623942,0.012521,3257.4,3257.1,0.0096632]
[1642115624743,2.712521,3257.4,3257.1,0.0096632]
[1642115625942,3.012521,3257.4,3257.1,0.0096632]
[1642115626746,3.0,3257.4,3257.1,0.0096632]
[1642115627589,3.0,3257.4,3257.2,0.05242406]
[1642115627790,2.7,3257.4,3257.1,0.0096632]
[1642115627989,2.7,3257.4,3257.3,0.00852635]
[1642115628189,2.7,3257.4,3257.1,0.0096632]
[1642115628390,2.712358,3257.4,3257.1,0.0096632]
[1642115628890,0.01423,3257.3,3257.1,0.0096632]
[1642115629189,0.13703,3257.3,3257.1,0.0096632]
[1642115630393,0.13703,3257.3,3257.2,2.6373593]
[1642115630794,0.13703,3257.3,3257.2,2.64645407]
[1642115631534,0.133825,3257.3,3257.2,2.64645407]
[1642115631937,0.1228,3257.3,3257.2,2.64645407]
[1642115632136,2.7,3257.4,3257.2,2.64645407]
[1642115632538,2.7,3257.4,3257.3,4.45852635]
[1642115633237,2.7,3257.4,3257.3,7.09588565]
[1642115633436,2.7,3257.4,3257.3,7.21858565]
[1642115635483,2.7,3257.4,3257.3,2.76858565]
[1642115635686,3.167435,3257.4,3257.3,2.64588565]
[1642115635986,3.642235,3257.4,3257.3,2.64588565]
[1642115636184,4.642235,3257.4,3257.3,2.64588565]
[1642115636385,9.092235,3257.4,3257.3,2.64588565]
[1642115636584,9.092235,3257.4,3257.0,2.0]
[1642115636585,7.46024796,3257.3,3257.0,2.0]
[1642115636785,5.394735,3257.1,3257.0,2.0]
[1642115636989,5.817535,3257.1,3257.0,2.0]
[1642115637384,7.35922329,3257.1,3257.0,2.0]
[1642115637584,7.15,3257.0,3256.5,15.26973785]
[1642115637788,7.444735,3256.6,3256.5,9.06973785]
[1642115638087,7.444735,3256.6,3256.1,0.1228]
[1642115638088,7.2,3256.5,3256.1,0.1228]
[1642115638288,0.044735,3256.2,3256.1,0.1228]
[1642115638557,0.167535,3256.2,3256.1,0.1228]
[1642115638747,0.044735,3256.2,3256.1,0.1228]
[1642115638948,0.3,3256.3,3256.1,0.1228]
[1642115638949,0.010911,3256.3,3256.1,0.1228]
[1642115639148,0.133711,3257.1,3256.1,0.1228]
[1642115639351,0.010911,3257.1,3256.8,1.00338382]
[1642115639749,0.010911,3257.1,3256.9,0.00227369]
[1642115639949,0.010911,3257.1,3257.0,1.26533773]
[1642115639950,1.45151488,3257.1,3257.0,1.26533773]
[1642115640348,1.45151488,3257.1,3257.0,1.267043]
[1642115640949,1.45151488,3257.1,3257.0,0.00170527]
[1642115641150,1.75151488,3257.1,3257.0,0.00170527]
[1642115641349,1.75151488,3257.1,3256.7,0.00341054]
[1642115641549,0.1228,3257.0,3256.7,0.00341054]
[1642115641749,0.019488,3256.8,3256.7,0.00341054]
[1642115641950,0.019488,3256.8,3256.7,1.55054579]
[1642115642153,0.010911,3256.9,3256.7,1.55054579]
[1642115642385,0.310911,3257.1,3256.7,1.55054579]
[1642115642584,0.310911,3257.1,3256.8,0.00284212]
[1642115642786,0.010911,3257.1,3256.8,0.00284212]
[1642115643584,0.01452,3257.0,3256.8,0.00284212]
[1642115643986,0.01452,3257.0,3256.9,1.34685437]
[1642115644385,0.01452,3257.0,3256.9,1.34912806]
[1642115644788,2.71452,3257.0,3256.9,1.34912806]
[1642115644985,3.01452,3257.0,3256.9,1.34912806]
[1642115645384,3.01452,3257.0,3256.9,0.00227369]
[1642115645786,3.01452,3257.0,3256.8,0.00284212]
[1642115647939,0.017321,3256.9,3256.8,0.00284212]
[1642115652190,1.017321,3256.9,3256.7,0.00341054]
[1642115652395,12.32807256,3256.8,3256.7,0.00341054]
[1642115652592,12.32807256,3256.8,3256.3,0.00568423]
[1642115652593,13.97280756,3256.8,3256.3,0.00568423]
[1642115652794,0.76815,3256.7,3256.3,0.00568423]
[1642115653092,0.76815,3256.7,3255.9,5.9879]
[1642115653093,9.30704008,3256.4,3256.0,0.0073895]
[1642115653291,0.4228,3256.3,3256.0,0.0073895]
[1642115653542,0.028217,3256.1,3256.0,0.0073895]
[1642115656638,0.46106135,3256.1,3256.0,0.0073895]
[1642115656837,4.7617791,3256.1,3256.0,0.0073895]
[1642115657039,5.0617791,3256.1,3256.0,2.63797675]
[1642115657289,6.02341484,3256.1,3256.0,2.63797675]
[1642115657490,6.02341484,3256.1,3256.0,2.64536625]
[1642115657693,1.76106135,3256.1,3256.0,2.64536625]
[1642115657889,0.76835,3255.8,3255.6,4.8073014]
[1642115658090,4.606818,3255.7,3255.6,0.1228]
[1642115658490,5.906818,3255.7,3255.6,0.1228]
[1642115659993,5.906818,3255.7,3255.1,1.56003536]
[1642115659994,1.5368,3255.4,3255.1,1.56003536]
[1642115660196,5.09795901,3255.2,3255.1,1.56003536]
[1642115660396,7.26007498,3255.2,3255.1,1.56003536]
[1642115660596,8.26007498,3255.2,3255.1,1.56003536]
[1642115661844,8.26007498,3255.2,3254.8,5.9742]
[1642115662046,0.76847,3255.0,3254.8,5.9742]
[1642115662244,1.865939,3255.0,3254.9,0.00625266]
[1642115662749,1.0847,3255.0,3254.9,1.46046474]
[1642115662946,0.7847,3255.0,3254.9,1.46046474]
[1642115663244,1.58430501,3255.6,3254.9,1.59570951]
[1642115663444,0.83359133,3255.5,3255.0,0.1228]
[1642115663646,0.83359133,3255.5,3255.0,0.12848424]
[1642115663845,0.83359133,3255.5,3255.1,0.00511582]
[1642115664046,0.83359133,3255.5,3255.2,1.24474622]
[1642115664247,0.83359133,3255.5,3255.2,0.1228]
[1642115664447,0.83359133,3255.5,3255.3,0.00397897]
[1642115664648,3.021822,3255.5,3255.3,0.00397897]
[1642115664896,0.014747,3255.4,3255.3,0.00397897]
[1642115665095,0.014747,3255.4,3255.1,0.00511582]
[1642115666899,0.014747,3255.4,3255.0,0.00568424]
[1642115667097,0.014729,3255.3,3255.0,0.00568424]
[1642115667299,0.014668,3255.2,3255.0,0.00568424]
[1642115667498,3.0,3255.5,3255.0,0.00568424]
[1642115667499,3.0,3255.5,3255.1,1.00338382]
[1642115667698,3.0,3255.5,3255.1,1.12618382]
[1642115667905,3.0,3255.5,3255.2,3.68907025]
[1642115668299,3.0,3255.5,3255.3,0.00397897]
[1642115668945,3.0,3255.5,3255.2,0.00454739]
[1642115669946,3.011418,3255.5,3255.2,0.00454739]
[1642115670648,3.011418,3255.5,3255.1,0.00511582]
[1642115671047,3.011418,3255.5,3255.1,1.56515118]
[1642115671449,3.011418,3255.5,3255.2,0.00454739]
[1642115672047,3.011418,3255.5,3255.1,0.00511582]
[1642115673100,3.011418,3255.5,3255.3,1.00338382]
[1642115673297,3.011418,3255.5,3255.1,0.00511582]
[1642115673494,3.011418,3255.5,3255.0,5.1593972]
[1642115673495,3.011418,3255.5,3255.4,0.00341054]
[1642115673695,3.011418,3255.5,3255.0,1.56003536]
[1642115673696,3.011418,3255.5,3255.1,0.00511582]
[1642115673896,3.011418,3255.5,3255.1,1.56515118]
[1642115674096,0.034916,3255.2,3255.1,1.56515118]
[1642115674294,0.157716,3255.2,3255.1,1.56003536]
[1642115675095,1.64632257,3255.2,3255.1,1.56003536]
[1642115675295,1.94632257,3255.2,3255.0,1.56003536]
[1642115675496,0.1228,3255.1,3255.0,1.56003536]
[1642115675903,0.1228,3255.1,3255.0,1.5657196]
[1642115676461,0.3,3255.2,3255.0,0.00568424]
[1642115676663,0.310911,3255.3,3255.0,0.00568424]
[1642115676860,0.021822,3255.3,3255.0,0.00568424]
[1642115677464,1.2613174,3255.2,3255.0,0.00568424]
[1642115677963,1.5613174,3255.2,3255.0,0.00568424]
[1642115678163,1.69324365,3255.2,3255.1,2.52788812]
[1642115678564,1.69324365,3255.2,3255.1,2.53300394]
[1642115678963,2.58439365,3255.2,3255.1,2.53300394]
[1642115679166,4.67068265,3255.2,3255.1,2.53300394]
[1642115679894,8.32068265,3255.2,3255.1,2.53300394]
[1642115680095,4.67068265,3255.2,3255.1,2.53300394]
[1642115680996,8.17068265,3255.2,3255.1,2.53300394]
[1642115683106,12.50131492,3255.2,3255.1,2.53300394]
[1642115683542,8.17068265,3255.2,3255.1,2.53300394]
[1642115684242,12.55357113,3255.2,3255.1,2.53300394]
[1642115684541,8.17068265,3255.2,3255.1,2.53300394]
[1642115688696,4.67068265,3255.2,3255.1,2.53300394]
[1642115688906,2.94788265,3255.2,3255.1,2.53300394]
[1642115689098,2.94189565,3255.2,3255.1,2.53300394]
[1642115690099,4.54189565,3255.2,3255.1,2.53300394]
[1642115691048,3.24189565,3255.2,3255.1,2.53300394]
[1642115691248,3.54189565,3255.2,3255.1,2.53300394]
[1642115691452,4.54189565,3255.2,3255.1,2.53300394]
[1642115691949,9.69189565,3255.2,3255.1,2.53300394]
[1642115692345,4.54189565,3255.2,3255.1,2.53300394]
[1642115692550,6.11528966,3255.2,3255.1,2.53300394]
[1642115693446,5.81528966,3255.2,3255.1,2.53300394]
[1642115693646,5.80333766,3255.2,3255.1,2.53300394]
[1642115693846,3.46159365,3255.2,3255.1,2.53300394]
[1642115694051,1.21244825,3255.2,3255.1,2.53300394]
[1642115694350,0.13192625,3255.2,3255.1,3.65918776]
[1642115694816,0.13192625,3255.2,3255.1,3.58238576]
[1642115696407,2.710911,3255.5,3255.1,3.58238576]
[1642115696611,2.710911,3255.5,3255.3,1.20452818]
[1642115696809,2.7,3255.5,3255.3,1.20452818]
[1642115697009,2.7,3255.5,3255.4,0.00341054]
[1642115697208,3.0,3255.5,3255.4,0.00341054]
[1642115697410,2.7,3255.5,3255.4,0.00341054]
[1642115697610,2.7,3255.5,3255.4,0.12621054]
[1642115697808,2.7,3255.5,3255.4,2.82621054]
[1642115698642,2.7,3255.5,3255.4,6.88452818]
[1642115699742,1.57339401,3256.3,3255.4,6.88452818]
[1642115699942,1.57339401,3256.3,3255.5,0.05148596]
[1642115700145,1.57509928,3256.3,3256.2,1.00338382]
[1642115701546,0.00170527,3256.3,3256.2,1.00338382]
[1642115703194,1.44909639,3256.1,3255.7,1.68283536]
[1642115703398,0.01320827,3256.3,3255.7,1.68283536]
[1642115703399,0.015249,3256.0,3255.7,1.56003536]
[1642115703595,0.015249,3256.0,3255.8,0.00113685]
[1642115703795,0.010911,3256.1,3255.8,0.00113685]
[1642115704797,0.010911,3256.1,3255.7,0.00170527]
[1642115704997,0.1228,3256.0,3255.7,0.00170527]
[1642115705203,4.367458,3255.8,3255.7,0.00170527]
[1642115705402,5.367458,3255.8,3255.7,0.00170527]
[1642115705601,5.967458,3255.8,3255.7,0.00170527]
[1642115706444,9.107458,3255.8,3255.7,0.00170527]
[1642115706643,7.45,3255.6,3255.3,1.56003536]
[1642115706846,8.74031169,3255.4,3255.3,1.56003536]
[1642115707050,10.34784669,3255.4,3255.3,1.56003536]
[1642115707246,11.87569368,3255.4,3255.3,0.39377319]
[1642115707446,11.87569368,3255.4,3254.5,9.7947]
[1642115707447,1.53717,3255.2,3254.5,9.7947]
[1642115707646,7.544735,3254.9,3254.5,9.7947]
[1642115707846,9.149735,3254.9,3254.5,9.7947]
[1642115708045,0.76867,3254.7,3254.5,6.81108925]
[1642115708245,1.20867,3254.7,3254.5,5.5497]
[1642115708449,7.44850851,3254.6,3254.5,5.5497]
[1642115708745,2.99850851,3254.6,3254.5,5.55652109]
[1642115709347,3.76719851,3254.6,3254.5,5.55652109]
[1642115709650,3.76719851,3254.6,3254.5,6.65127979]
[1642115711503,6.51719851,3254.6,3254.5,6.65127979]
[1642115711801,3.76719851,3254.6,3254.5,6.65127979]
[1642115712204,2.236325,3254.6,3254.5,6.65127979]
[1642115713203,3.51448989,3254.6,3254.5,6.65127979]
[1642115713651,2.113425,3254.6,3254.5,6.40127979]
[1642115715448,15.25692508,3254.6,3254.5,0.25187979]
[1642115715651,13.79692508,3254.6,3254.0,6.9365]
[1642115715850,4.234568,3254.1,3254.0,6.9365]
[1642115716049,7.6,3254.0,3253.0,6.62938382]
[1642115716250,0.017458,3253.2,3253.0,6.62938382]
[1642115716449,0.017458,3253.2,3253.1,8.8933]
[1642115716849,0.010911,3253.8,3253.1,8.8933]
[1642115717050,0.010911,3253.7,3253.2,0.1229]
[1642115717297,0.010911,3253.7,3253.1,4.9735895]
[1642115717500,0.010911,3253.7,3253.2,0.1229]
[1642115717699,0.00227369,3253.6,3253.2,0.1229]
[1642115717898,0.00227369,3253.6,3253.4,1.00338382]
[1642115718099,0.010911,3253.8,3253.5,0.1229]
[1642115718297,0.010911,3253.8,3253.2,1.3103]
[1642115718499,0.01455,3253.7,3253.2,1.3103]
[1642115718698,0.01523054,3253.8,3253.2,1.3103]
[1642115718699,0.029428,3253.3,3253.2,1.3103]
[1642115718904,0.743628,3253.3,3253.2,1.1874]
[1642115719099,1.343628,3253.3,3253.1,2.34588818]
[1642115719299,4.094735,3253.2,3253.1,2.34588818]
[1642115719600,7.63447247,3253.2,3253.1,2.34588818]
[1642115720201,6.426535,3253.2,3253.1,2.34588818]
[1642115720499,2.74932816,3253.2,3252.8,1.1881]
[1642115720702,1.37279316,3253.2,3253.1,8.00338382]
[1642115720900,1.56136114,3253.5,3253.2,7.65]
[1642115721156,1.56136114,3253.5,3253.1,1.26802698]
[1642115721357,0.00113685,3253.4,3253.3,5.42561283]
[1642115721959,0.00113685,3253.4,3253.3,6.96257182]
[1642115722757,0.00113685,3253.4,3253.3,2.76257182]
[1642115722957,0.00113685,3253.4,3253.3,1.53695899]
[1642115723160,0.01896985,3253.4,3253.3,1.53695899]
[1642115723461,0.01896985,3253.4,3253.2,1.1832]
[1642115723660,0.033395,3253.3,3253.2,1.1832]
[1642115723860,0.033395,3253.3,3253.1,0.25187979]
[1642115724064,0.020359,3253.2,3253.1,0.25187979]
[1642115724462,0.020359,3253.2,3253.1,1.45277101]
[1642115724662,0.01204785,3253.4,3253.1,1.45277101]
[1642115724894,0.015712,3253.2,3253.1,1.45277101]
[1642115725495,0.015712,3253.2,3253.1,4.15277101]
[1642115725696,0.01204785,3253.4,3253.1,4.15277101]